Workbook

Sheet Dépenses
B10: Date | C10: Qui | D10: Montant | E10: Commerçant | G10: Du 1er au 31 mai 2021 | M10: =G10 -> Du 1er au 31 mai 2021 | P10: Personne1 | Q10: Personne2 | R10: Personne3 | S10: Personne4 | T10: Personne5 | U10: Personne6 | V10: Personne7 | W10: Personne8 | X10: Personne9 | Y10: Personne10 | Z10: Personne11 | AA10: Personne12 | AB10: Personne13 | AC10: Personne14
G11: Qui | H11: Dépensé | I11: Nb. jours x pers. | J11: Doit financer | K11: Doit ou reçoit | P11: reçoit | Q11: reçoit | R11: reçoit | S11: reçoit | T11: reçoit | U11: reçoit | V11: reçoit | W11: reçoit | X11: reçoit | Y11: reçoit | Z11: reçoit | AA11: reçoit | AB11: reçoit | AC11: reçoit
B12: 2021-05-01 | C12: Personne1 | D12: 137 | P12: =IF(VLOOKUP(P10,$G$13:$K$26,5,FALSE)>=0,VLOOKUP(P10,$G$13:$K$26,5,FALSE),0) -> 13.01724138 | Q12: 53 | R12: =IF(VLOOKUP(R10,$G$13:$K$26,5,FALSE)>=0,VLOOKUP(R10,$G$13:$K$26,5,FALSE),0) -> 0 | S12: =IF(VLOOKUP(S10,$G$13:$K$26,5,FALSE)>=0,VLOOKUP(S10,$G$13:$K$26,5,FALSE),0) -> 77.13793103 | T12: 204 | U12: 0 | V12: 75 | W12: 0 | X12: 0 | Y12: 28 | Z12: 0 | AA12: 0 | AB12: 0 | AC12: 0
B13: 2021-05-03 | C13: Personne2 | D13: 53 | G13: Personne1 | H13: =SUMIF($C$12:$C$243,G13,$D$12:$D$243) -> 200 | I13: =SUMPRODUCT((Présence!$B$11:$B$24=G13)*Présence!$C$11:$AG$24) -> 15 | J13: =IF(ISERROR($H$28/$I$28*I13),"",$H$28/$I$28*I13) -> 186.9827586 | K13: =IF(ISERROR(H13-J13),"",H13-J13) -> 13.01724138 | M13: Personne1 | N13: doit | O13: =IF(VLOOKUP(M13,$G$13:$K$26,5,FALSE)<=0,VLOOKUP(M13,$G$13:$K$26,5,FALSE),0) -> 0 | P13: =IF(ISERROR(MAX(0,MIN(-SUM($O13:O13),P$12*2-SUM(P$12:P12)))),"",MAX(0,MIN(-SUM($O13:O13),P$12*2-SUM(P$12:P12)))) -> 0 | Q13: =IF(ISERROR(MAX(0,MIN(-SUM($O13:P13),Q$12*2-SUM(Q$12:Q12)))),"",MAX(0,MIN(-SUM($O13:P13),Q$12*2-SUM(Q$12:Q12)))) -> 0 | R13: =IF(ISERROR(MAX(0,MIN(-SUM($O13:Q13),R$12*2-SUM(R$12:R12)))),"",MAX(0,MIN(-SUM($O13:Q13),R$12*2-SUM(R$12:R12)))) -> 0 | S13: =IF(ISERROR(MAX(0,MIN(-SUM($O13:R13),S$12*2-SUM(S$12:S12)))),"",MAX(0,MIN(-SUM($O13:R13),S$12*2-SUM(S$12:S12)))) -> 0 | T13: =IF(ISERROR(MAX(0,MIN(-SUM($O13:S13),T$12*2-SUM(T$12:T12)))),"",MAX(0,MIN(-SUM($O13:S13),T$12*2-SUM(T$12:T12)))) -> 0 | U13: =IF(ISERROR(MAX(0,MIN(-SUM($O13:T13),U$12*2-SUM(U$12:U12)))),"",MAX(0,MIN(-SUM($O13:T13),U$12*2-SUM(U$12:U12)))) -> 0 | V13: =IF(ISERROR(MAX(0,MIN(-SUM($O13:U13),V$12*2-SUM(V$12:V12)))),"",MAX(0,MIN(-SUM($O13:U13),V$12*2-SUM(V$12:V12)))) -> 0 | W13: =IF(ISERROR(MAX(0,MIN(-SUM($O13:V13),W$12*2-SUM(W$12:W12)))),"",MAX(0,MIN(-SUM($O13:V13),W$12*2-SUM(W$12:W12)))) -> 0 | X13: =IF(ISERROR(MAX(0,MIN(-SUM($O13:W13),X$12*2-SUM(X$12:X12)))),"",MAX(0,MIN(-SUM($O13:W13),X$12*2-SUM(X$12:X12)))) -> 0 | Y13: =IF(ISERROR(MAX(0,MIN(-SUM($O13:X13),Y$12*2-SUM(Y$12:Y12)))),"",MAX(0,MIN(-SUM($O13:X13),Y$12*2-SUM(Y$12:Y12)))) -> 0 | Z13: =IF(ISERROR(MAX(0,MIN(-SUM($O13:Y13),Z$12*2-SUM(Z$12:Z12)))),"",MAX(0,MIN(-SUM($O13:Y13),Z$12*2-SUM(Z$12:Z12)))) -> 0 | AA13: =IF(ISERROR(MAX(0,MIN(-SUM($O13:Z13),AA$12*2-SUM(AA$12:AA12)))),"",MAX(0,MIN(-SUM($O13:Z13),AA$12*2-SUM(AA$12:AA12)))) -> 0 | AB13: =IF(ISERROR(MAX(0,MIN(-SUM($O13:AA13),AB$12*2-SUM(AB$12:AB12)))),"",MAX(0,MIN(-SUM($O13:AA13),AB$12*2-SUM(AB$12:AB12)))) -> 0 | AC13: =IF(ISERROR(MAX(0,MIN(-SUM($O13:AB13),AC$12*2-SUM(AC$12:AC12)))),"",MAX(0,MIN(-SUM($O13:AB13),AC$12*2-SUM(AC$12:AC12)))) -> 0
B14: 2021-05-03 | C14: Personne5 | D14: 204 | G14: Personne2 | H14: =SUMIF($C$12:$C$243,G14,$D$12:$D$243) -> 53 | I14: =SUMPRODUCT((Présence!$B$11:$B$24=G14)*Présence!$C$11:$AG$24) -> 0 | J14: =IF(ISERROR($H$28/$I$28*I14),"",$H$28/$I$28*I14) -> 0 | K14: =IF(ISERROR(H14-J14),"",H14-J14) -> 53 | M14: Personne2 | N14: doit | O14: =IF(VLOOKUP(M14,$G$13:$K$26,5,FALSE)<=0,VLOOKUP(M14,$G$13:$K$26,5,FALSE),0) -> 0 | P14: =IF(ISERROR(MAX(0,MIN(-SUM($O14:O14),P$12*2-SUM(P$12:P13)))),"",MAX(0,MIN(-SUM($O14:O14),P$12*2-SUM(P$12:P13)))) -> 0 | Q14: =IF(ISERROR(MAX(0,MIN(-SUM($O14:P14),Q$12*2-SUM(Q$12:Q13)))),"",MAX(0,MIN(-SUM($O14:P14),Q$12*2-SUM(Q$12:Q13)))) -> 0 | R14: =IF(ISERROR(MAX(0,MIN(-SUM($O14:Q14),R$12*2-SUM(R$12:R13)))),"",MAX(0,MIN(-SUM($O14:Q14),R$12*2-SUM(R$12:R13)))) -> 0 | S14: =IF(ISERROR(MAX(0,MIN(-SUM($O14:R14),S$12*2-SUM(S$12:S13)))),"",MAX(0,MIN(-SUM($O14:R14),S$12*2-SUM(S$12:S13)))) -> 0 | T14: =IF(ISERROR(MAX(0,MIN(-SUM($O14:S14),T$12*2-SUM(T$12:T13)))),"",MAX(0,MIN(-SUM($O14:S14),T$12*2-SUM(T$12:T13)))) -> 0 | U14: =IF(ISERROR(MAX(0,MIN(-SUM($O14:T14),U$12*2-SUM(U$12:U13)))),"",MAX(0,MIN(-SUM($O14:T14),U$12*2-SUM(U$12:U13)))) -> 0 | V14: =IF(ISERROR(MAX(0,MIN(-SUM($O14:U14),V$12*2-SUM(V$12:V13)))),"",MAX(0,MIN(-SUM($O14:U14),V$12*2-SUM(V$12:V13)))) -> 0 | W14: =IF(ISERROR(MAX(0,MIN(-SUM($O14:V14),W$12*2-SUM(W$12:W13)))),"",MAX(0,MIN(-SUM($O14:V14),W$12*2-SUM(W$12:W13)))) -> 0 | X14: =IF(ISERROR(MAX(0,MIN(-SUM($O14:W14),X$12*2-SUM(X$12:X13)))),"",MAX(0,MIN(-SUM($O14:W14),X$12*2-SUM(X$12:X13)))) -> 0 | Y14: =IF(ISERROR(MAX(0,MIN(-SUM($O14:X14),Y$12*2-SUM(Y$12:Y13)))),"",MAX(0,MIN(-SUM($O14:X14),Y$12*2-SUM(Y$12:Y13)))) -> 0 | Z14: =IF(ISERROR(MAX(0,MIN(-SUM($O14:Y14),Z$12*2-SUM(Z$12:Z13)))),"",MAX(0,MIN(-SUM($O14:Y14),Z$12*2-SUM(Z$12:Z13)))) -> 0 | AA14: =IF(ISERROR(MAX(0,MIN(-SUM($O14:Z14),AA$12*2-SUM(AA$12:AA13)))),"",MAX(0,MIN(-SUM($O14:Z14),AA$12*2-SUM(AA$12:AA13)))) -> 0 | AB14: =IF(ISERROR(MAX(0,MIN(-SUM($O14:AA14),AB$12*2-SUM(AB$12:AB13)))),"",MAX(0,MIN(-SUM($O14:AA14),AB$12*2-SUM(AB$12:AB13)))) -> 0 | AC14: =IF(ISERROR(MAX(0,MIN(-SUM($O14:AB14),AC$12*2-SUM(AC$12:AC13)))),"",MAX(0,MIN(-SUM($O14:AB14),AC$12*2-SUM(AC$12:AC13)))) -> 0
B15: 2021-05-05 | C15: Personne7 | D15: 75 | G15: Personne3 | H15: 36 | I15: =SUMPRODUCT((Présence!$B$11:$B$24=G15)*Présence!$C$11:$AG$24) -> 6 | J15: 74.79310345 | K15: -38.79310345 | M15: Personne3 | N15: doit | O15: =IF(VLOOKUP(M15,$G$13:$K$26,5,FALSE)<=0,VLOOKUP(M15,$G$13:$K$26,5,FALSE),0) -> -38.79310345 | P15: =IF(ISERROR(MAX(0,MIN(-SUM($O15:O15),P$12*2-SUM(P$12:P14)))),"",MAX(0,MIN(-SUM($O15:O15),P$12*2-SUM(P$12:P14)))) -> 13.01724138 | Q15: =IF(ISERROR(MAX(0,MIN(-SUM($O15:P15),Q$12*2-SUM(Q$12:Q14)))),"",MAX(0,MIN(-SUM($O15:P15),Q$12*2-SUM(Q$12:Q14)))) -> 25.77586207 | R15: =IF(ISERROR(MAX(0,MIN(-SUM($O15:Q15),R$12*2-SUM(R$12:R14)))),"",MAX(0,MIN(-SUM($O15:Q15),R$12*2-SUM(R$12:R14)))) -> 0 | S15: =IF(ISERROR(MAX(0,MIN(-SUM($O15:R15),S$12*2-SUM(S$12:S14)))),"",MAX(0,MIN(-SUM($O15:R15),S$12*2-SUM(S$12:S14)))) -> 0 | T15: =IF(ISERROR(MAX(0,MIN(-SUM($O15:S15),T$12*2-SUM(T$12:T14)))),"",MAX(0,MIN(-SUM($O15:S15),T$12*2-SUM(T$12:T14)))) -> 0 | U15: =IF(ISERROR(MAX(0,MIN(-SUM($O15:T15),U$12*2-SUM(U$12:U14)))),"",MAX(0,MIN(-SUM($O15:T15),U$12*2-SUM(U$12:U14)))) -> 0 | V15: =IF(ISERROR(MAX(0,MIN(-SUM($O15:U15),V$12*2-SUM(V$12:V14)))),"",MAX(0,MIN(-SUM($O15:U15),V$12*2-SUM(V$12:V14)))) -> 0 | W15: =IF(ISERROR(MAX(0,MIN(-SUM($O15:V15),W$12*2-SUM(W$12:W14)))),"",MAX(0,MIN(-SUM($O15:V15),W$12*2-SUM(W$12:W14)))) -> 0 | X15: =IF(ISERROR(MAX(0,MIN(-SUM($O15:W15),X$12*2-SUM(X$12:X14)))),"",MAX(0,MIN(-SUM($O15:W15),X$12*2-SUM(X$12:X14)))) -> 0 | Y15: =IF(ISERROR(MAX(0,MIN(-SUM($O15:X15),Y$12*2-SUM(Y$12:Y14)))),"",MAX(0,MIN(-SUM($O15:X15),Y$12*2-SUM(Y$12:Y14)))) -> 0 | Z15: =IF(ISERROR(MAX(0,MIN(-SUM($O15:Y15),Z$12*2-SUM(Z$12:Z14)))),"",MAX(0,MIN(-SUM($O15:Y15),Z$12*2-SUM(Z$12:Z14)))) -> 0 | AA15: =IF(ISERROR(MAX(0,MIN(-SUM($O15:Z15),AA$12*2-SUM(AA$12:AA14)))),"",MAX(0,MIN(-SUM($O15:Z15),AA$12*2-SUM(AA$12:AA14)))) -> 0 | AB15: =IF(ISERROR(MAX(0,MIN(-SUM($O15:AA15),AB$12*2-SUM(AB$12:AB14)))),"",MAX(0,MIN(-SUM($O15:AA15),AB$12*2-SUM(AB$12:AB14)))) -> 0 | AC15: =IF(ISERROR(MAX(0,MIN(-SUM($O15:AB15),AC$12*2-SUM(AC$12:AC14)))),"",MAX(0,MIN(-SUM($O15:AB15),AC$12*2-SUM(AC$12:AC14)))) -> 0
B16: 2021-05-06 | C16: Personne3 | D16: 36 | G16: Personne4 | H16: 127 | I16: =SUMPRODUCT((Présence!$B$11:$B$24=G16)*Présence!$C$11:$AG$24) -> 4 | J16: 49.86206897 | K16: 77.13793103 | M16: Personne4 | N16: doit | O16: =IF(VLOOKUP(M16,$G$13:$K$26,5,FALSE)<=0,VLOOKUP(M16,$G$13:$K$26,5,FALSE),0) -> 0 | P16: =IF(ISERROR(MAX(0,MIN(-SUM($O16:O16),P$12*2-SUM(P$12:P15)))),"",MAX(0,MIN(-SUM($O16:O16),P$12*2-SUM(P$12:P15)))) -> 0 | Q16: =IF(ISERROR(MAX(0,MIN(-SUM($O16:P16),Q$12*2-SUM(Q$12:Q15)))),"",MAX(0,MIN(-SUM($O16:P16),Q$12*2-SUM(Q$12:Q15)))) -> 0 | R16: =IF(ISERROR(MAX(0,MIN(-SUM($O16:Q16),R$12*2-SUM(R$12:R15)))),"",MAX(0,MIN(-SUM($O16:Q16),R$12*2-SUM(R$12:R15)))) -> 0 | S16: =IF(ISERROR(MAX(0,MIN(-SUM($O16:R16),S$12*2-SUM(S$12:S15)))),"",MAX(0,MIN(-SUM($O16:R16),S$12*2-SUM(S$12:S15)))) -> 0 | T16: =IF(ISERROR(MAX(0,MIN(-SUM($O16:S16),T$12*2-SUM(T$12:T15)))),"",MAX(0,MIN(-SUM($O16:S16),T$12*2-SUM(T$12:T15)))) -> 0 | U16: =IF(ISERROR(MAX(0,MIN(-SUM($O16:T16),U$12*2-SUM(U$12:U15)))),"",MAX(0,MIN(-SUM($O16:T16),U$12*2-SUM(U$12:U15)))) -> 0 | V16: =IF(ISERROR(MAX(0,MIN(-SUM($O16:U16),V$12*2-SUM(V$12:V15)))),"",MAX(0,MIN(-SUM($O16:U16),V$12*2-SUM(V$12:V15)))) -> 0 | W16: =IF(ISERROR(MAX(0,MIN(-SUM($O16:V16),W$12*2-SUM(W$12:W15)))),"",MAX(0,MIN(-SUM($O16:V16),W$12*2-SUM(W$12:W15)))) -> 0 | X16: =IF(ISERROR(MAX(0,MIN(-SUM($O16:W16),X$12*2-SUM(X$12:X15)))),"",MAX(0,MIN(-SUM($O16:W16),X$12*2-SUM(X$12:X15)))) -> 0 | Y16: =IF(ISERROR(MAX(0,MIN(-SUM($O16:X16),Y$12*2-SUM(Y$12:Y15)))),"",MAX(0,MIN(-SUM($O16:X16),Y$12*2-SUM(Y$12:Y15)))) -> 0 | Z16: =IF(ISERROR(MAX(0,MIN(-SUM($O16:Y16),Z$12*2-SUM(Z$12:Z15)))),"",MAX(0,MIN(-SUM($O16:Y16),Z$12*2-SUM(Z$12:Z15)))) -> 0 | AA16: =IF(ISERROR(MAX(0,MIN(-SUM($O16:Z16),AA$12*2-SUM(AA$12:AA15)))),"",MAX(0,MIN(-SUM($O16:Z16),AA$12*2-SUM(AA$12:AA15)))) -> 0 | AB16: =IF(ISERROR(MAX(0,MIN(-SUM($O16:AA16),AB$12*2-SUM(AB$12:AB15)))),"",MAX(0,MIN(-SUM($O16:AA16),AB$12*2-SUM(AB$12:AB15)))) -> 0 | AC16: =IF(ISERROR(MAX(0,MIN(-SUM($O16:AB16),AC$12*2-SUM(AC$12:AC15)))),"",MAX(0,MIN(-SUM($O16:AB16),AC$12*2-SUM(AC$12:AC15)))) -> 0
B17: 2021-05-10 | C17: Personne4 | D17: 127 | G17: Personne5 | H17: 204 | I17: =SUMPRODUCT((Présence!$B$11:$B$24=G17)*Présence!$C$11:$AG$24) -> 0 | J17: 0 | K17: 204 | M17: Personne5 | N17: doit | O17: =IF(VLOOKUP(M17,$G$13:$K$26,5,FALSE)<=0,VLOOKUP(M17,$G$13:$K$26,5,FALSE),0) -> 0 | P17: =IF(ISERROR(MAX(0,MIN(-SUM($O17:O17),P$12*2-SUM(P$12:P16)))),"",MAX(0,MIN(-SUM($O17:O17),P$12*2-SUM(P$12:P16)))) -> 0 | Q17: =IF(ISERROR(MAX(0,MIN(-SUM($O17:P17),Q$12*2-SUM(Q$12:Q16)))),"",MAX(0,MIN(-SUM($O17:P17),Q$12*2-SUM(Q$12:Q16)))) -> 0 | R17: =IF(ISERROR(MAX(0,MIN(-SUM($O17:Q17),R$12*2-SUM(R$12:R16)))),"",MAX(0,MIN(-SUM($O17:Q17),R$12*2-SUM(R$12:R16)))) -> 0 | S17: =IF(ISERROR(MAX(0,MIN(-SUM($O17:R17),S$12*2-SUM(S$12:S16)))),"",MAX(0,MIN(-SUM($O17:R17),S$12*2-SUM(S$12:S16)))) -> 0 | T17: =IF(ISERROR(MAX(0,MIN(-SUM($O17:S17),T$12*2-SUM(T$12:T16)))),"",MAX(0,MIN(-SUM($O17:S17),T$12*2-SUM(T$12:T16)))) -> 0 | U17: =IF(ISERROR(MAX(0,MIN(-SUM($O17:T17),U$12*2-SUM(U$12:U16)))),"",MAX(0,MIN(-SUM($O17:T17),U$12*2-SUM(U$12:U16)))) -> 0 | V17: =IF(ISERROR(MAX(0,MIN(-SUM($O17:U17),V$12*2-SUM(V$12:V16)))),"",MAX(0,MIN(-SUM($O17:U17),V$12*2-SUM(V$12:V16)))) -> 0 | W17: =IF(ISERROR(MAX(0,MIN(-SUM($O17:V17),W$12*2-SUM(W$12:W16)))),"",MAX(0,MIN(-SUM($O17:V17),W$12*2-SUM(W$12:W16)))) -> 0 | X17: =IF(ISERROR(MAX(0,MIN(-SUM($O17:W17),X$12*2-SUM(X$12:X16)))),"",MAX(0,MIN(-SUM($O17:W17),X$12*2-SUM(X$12:X16)))) -> 0 | Y17: =IF(ISERROR(MAX(0,MIN(-SUM($O17:X17),Y$12*2-SUM(Y$12:Y16)))),"",MAX(0,MIN(-SUM($O17:X17),Y$12*2-SUM(Y$12:Y16)))) -> 0 | Z17: =IF(ISERROR(MAX(0,MIN(-SUM($O17:Y17),Z$12*2-SUM(Z$12:Z16)))),"",MAX(0,MIN(-SUM($O17:Y17),Z$12*2-SUM(Z$12:Z16)))) -> 0 | AA17: =IF(ISERROR(MAX(0,MIN(-SUM($O17:Z17),AA$12*2-SUM(AA$12:AA16)))),"",MAX(0,MIN(-SUM($O17:Z17),AA$12*2-SUM(AA$12:AA16)))) -> 0 | AB17: =IF(ISERROR(MAX(0,MIN(-SUM($O17:AA17),AB$12*2-SUM(AB$12:AB16)))),"",MAX(0,MIN(-SUM($O17:AA17),AB$12*2-SUM(AB$12:AB16)))) -> 0 | AC17: =IF(ISERROR(MAX(0,MIN(-SUM($O17:AB17),AC$12*2-SUM(AC$12:AC16)))),"",MAX(0,MIN(-SUM($O17:AB17),AC$12*2-SUM(AC$12:AC16)))) -> 0
B18: 2021-05-10 | C18: Personne1 | D18: 63 | G18: Personne6 | H18: 0 | I18: =SUMPRODUCT((Présence!$B$11:$B$24=G18)*Présence!$C$11:$AG$24) -> 15 | J18: 186.9827586 | K18: -186.9827586 | M18: Personne6 | N18: doit | O18: =IF(VLOOKUP(M18,$G$13:$K$26,5,FALSE)<=0,VLOOKUP(M18,$G$13:$K$26,5,FALSE),0) -> -186.9827586 | P18: =IF(ISERROR(MAX(0,MIN(-SUM($O18:O18),P$12*2-SUM(P$12:P17)))),"",MAX(0,MIN(-SUM($O18:O18),P$12*2-SUM(P$12:P17)))) -> 0 | Q18: =IF(ISERROR(MAX(0,MIN(-SUM($O18:P18),Q$12*2-SUM(Q$12:Q17)))),"",MAX(0,MIN(-SUM($O18:P18),Q$12*2-SUM(Q$12:Q17)))) -> 27.22413793 | R18: =IF(ISERROR(MAX(0,MIN(-SUM($O18:Q18),R$12*2-SUM(R$12:R17)))),"",MAX(0,MIN(-SUM($O18:Q18),R$12*2-SUM(R$12:R17)))) -> 0 | S18: =IF(ISERROR(MAX(0,MIN(-SUM($O18:R18),S$12*2-SUM(S$12:S17)))),"",MAX(0,MIN(-SUM($O18:R18),S$12*2-SUM(S$12:S17)))) -> 77.13793103 | T18: =IF(ISERROR(MAX(0,MIN(-SUM($O18:S18),T$12*2-SUM(T$12:T17)))),"",MAX(0,MIN(-SUM($O18:S18),T$12*2-SUM(T$12:T17)))) -> 82.62068966 | U18: =IF(ISERROR(MAX(0,MIN(-SUM($O18:T18),U$12*2-SUM(U$12:U17)))),"",MAX(0,MIN(-SUM($O18:T18),U$12*2-SUM(U$12:U17)))) -> 0 | V18: =IF(ISERROR(MAX(0,MIN(-SUM($O18:U18),V$12*2-SUM(V$12:V17)))),"",MAX(0,MIN(-SUM($O18:U18),V$12*2-SUM(V$12:V17)))) -> 0 | W18: =IF(ISERROR(MAX(0,MIN(-SUM($O18:V18),W$12*2-SUM(W$12:W17)))),"",MAX(0,MIN(-SUM($O18:V18),W$12*2-SUM(W$12:W17)))) -> 0 | X18: =IF(ISERROR(MAX(0,MIN(-SUM($O18:W18),X$12*2-SUM(X$12:X17)))),"",MAX(0,MIN(-SUM($O18:W18),X$12*2-SUM(X$12:X17)))) -> 0 | Y18: =IF(ISERROR(MAX(0,MIN(-SUM($O18:X18),Y$12*2-SUM(Y$12:Y17)))),"",MAX(0,MIN(-SUM($O18:X18),Y$12*2-SUM(Y$12:Y17)))) -> 0 | Z18: =IF(ISERROR(MAX(0,MIN(-SUM($O18:Y18),Z$12*2-SUM(Z$12:Z17)))),"",MAX(0,MIN(-SUM($O18:Y18),Z$12*2-SUM(Z$12:Z17)))) -> 0 | AA18: =IF(ISERROR(MAX(0,MIN(-SUM($O18:Z18),AA$12*2-SUM(AA$12:AA17)))),"",MAX(0,MIN(-SUM($O18:Z18),AA$12*2-SUM(AA$12:AA17)))) -> 0 | AB18: =IF(ISERROR(MAX(0,MIN(-SUM($O18:AA18),AB$12*2-SUM(AB$12:AB17)))),"",MAX(0,MIN(-SUM($O18:AA18),AB$12*2-SUM(AB$12:AB17)))) -> 0 | AC18: =IF(ISERROR(MAX(0,MIN(-SUM($O18:AB18),AC$12*2-SUM(AC$12:AC17)))),"",MAX(0,MIN(-SUM($O18:AB18),AC$12*2-SUM(AC$12:AC17)))) -> 0
B19: 2021-05-12 | C19: Personne10 | D19: 28 | G19: Personne7 | H19: 75 | I19: =SUMPRODUCT((Présence!$B$11:$B$24=G19)*Présence!$C$11:$AG$24) -> 0 | J19: 0 | K19: 75 | M19: Personne7 | N19: doit | O19: 0 | P19: =IF(ISERROR(MAX(0,MIN(-SUM($O19:O19),P$12*2-SUM(P$12:P18)))),"",MAX(0,MIN(-SUM($O19:O19),P$12*2-SUM(P$12:P18)))) -> 0 | Q19: =IF(ISERROR(MAX(0,MIN(-SUM($O19:P19),Q$12*2-SUM(Q$12:Q18)))),"",MAX(0,MIN(-SUM($O19:P19),Q$12*2-SUM(Q$12:Q18)))) -> 0 | R19: =IF(ISERROR(MAX(0,MIN(-SUM($O19:Q19),R$12*2-SUM(R$12:R18)))),"",MAX(0,MIN(-SUM($O19:Q19),R$12*2-SUM(R$12:R18)))) -> 0 | S19: =IF(ISERROR(MAX(0,MIN(-SUM($O19:R19),S$12*2-SUM(S$12:S18)))),"",MAX(0,MIN(-SUM($O19:R19),S$12*2-SUM(S$12:S18)))) -> 0 | T19: =IF(ISERROR(MAX(0,MIN(-SUM($O19:S19),T$12*2-SUM(T$12:T18)))),"",MAX(0,MIN(-SUM($O19:S19),T$12*2-SUM(T$12:T18)))) -> 0 | U19: =IF(ISERROR(MAX(0,MIN(-SUM($O19:T19),U$12*2-SUM(U$12:U18)))),"",MAX(0,MIN(-SUM($O19:T19),U$12*2-SUM(U$12:U18)))) -> 0 | V19: =IF(ISERROR(MAX(0,MIN(-SUM($O19:U19),V$12*2-SUM(V$12:V18)))),"",MAX(0,MIN(-SUM($O19:U19),V$12*2-SUM(V$12:V18)))) -> 0 | W19: =IF(ISERROR(MAX(0,MIN(-SUM($O19:V19),W$12*2-SUM(W$12:W18)))),"",MAX(0,MIN(-SUM($O19:V19),W$12*2-SUM(W$12:W18)))) -> 0 | X19: =IF(ISERROR(MAX(0,MIN(-SUM($O19:W19),X$12*2-SUM(X$12:X18)))),"",MAX(0,MIN(-SUM($O19:W19),X$12*2-SUM(X$12:X18)))) -> 0 | Y19: =IF(ISERROR(MAX(0,MIN(-SUM($O19:X19),Y$12*2-SUM(Y$12:Y18)))),"",MAX(0,MIN(-SUM($O19:X19),Y$12*2-SUM(Y$12:Y18)))) -> 0 | Z19: =IF(ISERROR(MAX(0,MIN(-SUM($O19:Y19),Z$12*2-SUM(Z$12:Z18)))),"",MAX(0,MIN(-SUM($O19:Y19),Z$12*2-SUM(Z$12:Z18)))) -> 0 | AA19: =IF(ISERROR(MAX(0,MIN(-SUM($O19:Z19),AA$12*2-SUM(AA$12:AA18)))),"",MAX(0,MIN(-SUM($O19:Z19),AA$12*2-SUM(AA$12:AA18)))) -> 0 | AB19: =IF(ISERROR(MAX(0,MIN(-SUM($O19:AA19),AB$12*2-SUM(AB$12:AB18)))),"",MAX(0,MIN(-SUM($O19:AA19),AB$12*2-SUM(AB$12:AB18)))) -> 0 | AC19: =IF(ISERROR(MAX(0,MIN(-SUM($O19:AB19),AC$12*2-SUM(AC$12:AC18)))),"",MAX(0,MIN(-SUM($O19:AB19),AC$12*2-SUM(AC$12:AC18)))) -> 0
G20: Personne8 | H20: 0 | I20: =SUMPRODUCT((Présence!$B$11:$B$24=G20)*Présence!$C$11:$AG$24) -> 18 | J20: 224.3793103 | K20: -224.3793103 | M20: Personne8 | N20: doit | O20: -224.3793103 | P20: =IF(ISERROR(MAX(0,MIN(-SUM($O20:O20),P$12*2-SUM(P$12:P19)))),"",MAX(0,MIN(-SUM($O20:O20),P$12*2-SUM(P$12:P19)))) -> 0 | Q20: =IF(ISERROR(MAX(0,MIN(-SUM($O20:P20),Q$12*2-SUM(Q$12:Q19)))),"",MAX(0,MIN(-SUM($O20:P20),Q$12*2-SUM(Q$12:Q19)))) -> 0 | R20: =IF(ISERROR(MAX(0,MIN(-SUM($O20:Q20),R$12*2-SUM(R$12:R19)))),"",MAX(0,MIN(-SUM($O20:Q20),R$12*2-SUM(R$12:R19)))) -> 0 | S20: =IF(ISERROR(MAX(0,MIN(-SUM($O20:R20),S$12*2-SUM(S$12:S19)))),"",MAX(0,MIN(-SUM($O20:R20),S$12*2-SUM(S$12:S19)))) -> 0 | T20: =IF(ISERROR(MAX(0,MIN(-SUM($O20:S20),T$12*2-SUM(T$12:T19)))),"",MAX(0,MIN(-SUM($O20:S20),T$12*2-SUM(T$12:T19)))) -> 121.3793103 | U20: =IF(ISERROR(MAX(0,MIN(-SUM($O20:T20),U$12*2-SUM(U$12:U19)))),"",MAX(0,MIN(-SUM($O20:T20),U$12*2-SUM(U$12:U19)))) -> 0 | V20: =IF(ISERROR(MAX(0,MIN(-SUM($O20:U20),V$12*2-SUM(V$12:V19)))),"",MAX(0,MIN(-SUM($O20:U20),V$12*2-SUM(V$12:V19)))) -> 75 | W20: =IF(ISERROR(MAX(0,MIN(-SUM($O20:V20),W$12*2-SUM(W$12:W19)))),"",MAX(0,MIN(-SUM($O20:V20),W$12*2-SUM(W$12:W19)))) -> 0 | X20: =IF(ISERROR(MAX(0,MIN(-SUM($O20:W20),X$12*2-SUM(X$12:X19)))),"",MAX(0,MIN(-SUM($O20:W20),X$12*2-SUM(X$12:X19)))) -> 0 | Y20: =IF(ISERROR(MAX(0,MIN(-SUM($O20:X20),Y$12*2-SUM(Y$12:Y19)))),"",MAX(0,MIN(-SUM($O20:X20),Y$12*2-SUM(Y$12:Y19)))) -> 28 | Z20: =IF(ISERROR(MAX(0,MIN(-SUM($O20:Y20),Z$12*2-SUM(Z$12:Z19)))),"",MAX(0,MIN(-SUM($O20:Y20),Z$12*2-SUM(Z$12:Z19)))) -> 0 | AA20: =IF(ISERROR(MAX(0,MIN(-SUM($O20:Z20),AA$12*2-SUM(AA$12:AA19)))),"",MAX(0,MIN(-SUM($O20:Z20),AA$12*2-SUM(AA$12:AA19)))) -> 0 | AB20: =IF(ISERROR(MAX(0,MIN(-SUM($O20:AA20),AB$12*2-SUM(AB$12:AB19)))),"",MAX(0,MIN(-SUM($O20:AA20),AB$12*2-SUM(AB$12:AB19)))) -> 0 | AC20: =IF(ISERROR(MAX(0,MIN(-SUM($O20:AB20),AC$12*2-SUM(AC$12:AC19)))),"",MAX(0,MIN(-SUM($O20:AB20),AC$12*2-SUM(AC$12:AC19)))) -> 0
G21: Personne9 | H21: 0 | I21: =SUMPRODUCT((Présence!$B$11:$B$24=G21)*Présence!$C$11:$AG$24) -> 0 | J21: 0 | K21: 0 | M21: Personne9 | N21: doit | O21: 0 | P21: =IF(ISERROR(MAX(0,MIN(-SUM($O21:O21),P$12*2-SUM(P$12:P20)))),"",MAX(0,MIN(-SUM($O21:O21),P$12*2-SUM(P$12:P20)))) -> 0 | Q21: =IF(ISERROR(MAX(0,MIN(-SUM($O21:P21),Q$12*2-SUM(Q$12:Q20)))),"",MAX(0,MIN(-SUM($O21:P21),Q$12*2-SUM(Q$12:Q20)))) -> 0 | R21: =IF(ISERROR(MAX(0,MIN(-SUM($O21:Q21),R$12*2-SUM(R$12:R20)))),"",MAX(0,MIN(-SUM($O21:Q21),R$12*2-SUM(R$12:R20)))) -> 0 | S21: =IF(ISERROR(MAX(0,MIN(-SUM($O21:R21),S$12*2-SUM(S$12:S20)))),"",MAX(0,MIN(-SUM($O21:R21),S$12*2-SUM(S$12:S20)))) -> 0 | T21: =IF(ISERROR(MAX(0,MIN(-SUM($O21:S21),T$12*2-SUM(T$12:T20)))),"",MAX(0,MIN(-SUM($O21:S21),T$12*2-SUM(T$12:T20)))) -> 0 | U21: =IF(ISERROR(MAX(0,MIN(-SUM($O21:T21),U$12*2-SUM(U$12:U20)))),"",MAX(0,MIN(-SUM($O21:T21),U$12*2-SUM(U$12:U20)))) -> 0 | V21: =IF(ISERROR(MAX(0,MIN(-SUM($O21:U21),V$12*2-SUM(V$12:V20)))),"",MAX(0,MIN(-SUM($O21:U21),V$12*2-SUM(V$12:V20)))) -> 0 | W21: =IF(ISERROR(MAX(0,MIN(-SUM($O21:V21),W$12*2-SUM(W$12:W20)))),"",MAX(0,MIN(-SUM($O21:V21),W$12*2-SUM(W$12:W20)))) -> 0 | X21: =IF(ISERROR(MAX(0,MIN(-SUM($O21:W21),X$12*2-SUM(X$12:X20)))),"",MAX(0,MIN(-SUM($O21:W21),X$12*2-SUM(X$12:X20)))) -> 0 | Y21: =IF(ISERROR(MAX(0,MIN(-SUM($O21:X21),Y$12*2-SUM(Y$12:Y20)))),"",MAX(0,MIN(-SUM($O21:X21),Y$12*2-SUM(Y$12:Y20)))) -> 0 | Z21: =IF(ISERROR(MAX(0,MIN(-SUM($O21:Y21),Z$12*2-SUM(Z$12:Z20)))),"",MAX(0,MIN(-SUM($O21:Y21),Z$12*2-SUM(Z$12:Z20)))) -> 0 | AA21: =IF(ISERROR(MAX(0,MIN(-SUM($O21:Z21),AA$12*2-SUM(AA$12:AA20)))),"",MAX(0,MIN(-SUM($O21:Z21),AA$12*2-SUM(AA$12:AA20)))) -> 0 | AB21: =IF(ISERROR(MAX(0,MIN(-SUM($O21:AA21),AB$12*2-SUM(AB$12:AB20)))),"",MAX(0,MIN(-SUM($O21:AA21),AB$12*2-SUM(AB$12:AB20)))) -> 0 | AC21: =IF(ISERROR(MAX(0,MIN(-SUM($O21:AB21),AC$12*2-SUM(AC$12:AC20)))),"",MAX(0,MIN(-SUM($O21:AB21),AC$12*2-SUM(AC$12:AC20)))) -> 0
G22: Personne10 | H22: 28 | I22: =SUMPRODUCT((Présence!$B$11:$B$24=G22)*Présence!$C$11:$AG$24) -> 0 | J22: 0 | K22: 28 | M22: Personne10 | N22: doit | O22: 0 | P22: =IF(ISERROR(MAX(0,MIN(-SUM($O22:O22),P$12*2-SUM(P$12:P21)))),"",MAX(0,MIN(-SUM($O22:O22),P$12*2-SUM(P$12:P21)))) -> 0 | Q22: =IF(ISERROR(MAX(0,MIN(-SUM($O22:P22),Q$12*2-SUM(Q$12:Q21)))),"",MAX(0,MIN(-SUM($O22:P22),Q$12*2-SUM(Q$12:Q21)))) -> 0 | R22: =IF(ISERROR(MAX(0,MIN(-SUM($O22:Q22),R$12*2-SUM(R$12:R21)))),"",MAX(0,MIN(-SUM($O22:Q22),R$12*2-SUM(R$12:R21)))) -> 0 | S22: =IF(ISERROR(MAX(0,MIN(-SUM($O22:R22),S$12*2-SUM(S$12:S21)))),"",MAX(0,MIN(-SUM($O22:R22),S$12*2-SUM(S$12:S21)))) -> 0 | T22: =IF(ISERROR(MAX(0,MIN(-SUM($O22:S22),T$12*2-SUM(T$12:T21)))),"",MAX(0,MIN(-SUM($O22:S22),T$12*2-SUM(T$12:T21)))) -> 0 | U22: =IF(ISERROR(MAX(0,MIN(-SUM($O22:T22),U$12*2-SUM(U$12:U21)))),"",MAX(0,MIN(-SUM($O22:T22),U$12*2-SUM(U$12:U21)))) -> 0 | V22: =IF(ISERROR(MAX(0,MIN(-SUM($O22:U22),V$12*2-SUM(V$12:V21)))),"",MAX(0,MIN(-SUM($O22:U22),V$12*2-SUM(V$12:V21)))) -> 0 | W22: =IF(ISERROR(MAX(0,MIN(-SUM($O22:V22),W$12*2-SUM(W$12:W21)))),"",MAX(0,MIN(-SUM($O22:V22),W$12*2-SUM(W$12:W21)))) -> 0 | X22: =IF(ISERROR(MAX(0,MIN(-SUM($O22:W22),X$12*2-SUM(X$12:X21)))),"",MAX(0,MIN(-SUM($O22:W22),X$12*2-SUM(X$12:X21)))) -> 0 | Y22: =IF(ISERROR(MAX(0,MIN(-SUM($O22:X22),Y$12*2-SUM(Y$12:Y21)))),"",MAX(0,MIN(-SUM($O22:X22),Y$12*2-SUM(Y$12:Y21)))) -> 0 | Z22: =IF(ISERROR(MAX(0,MIN(-SUM($O22:Y22),Z$12*2-SUM(Z$12:Z21)))),"",MAX(0,MIN(-SUM($O22:Y22),Z$12*2-SUM(Z$12:Z21)))) -> 0 | AA22: =IF(ISERROR(MAX(0,MIN(-SUM($O22:Z22),AA$12*2-SUM(AA$12:AA21)))),"",MAX(0,MIN(-SUM($O22:Z22),AA$12*2-SUM(AA$12:AA21)))) -> 0 | AB22: =IF(ISERROR(MAX(0,MIN(-SUM($O22:AA22),AB$12*2-SUM(AB$12:AB21)))),"",MAX(0,MIN(-SUM($O22:AA22),AB$12*2-SUM(AB$12:AB21)))) -> 0 | AC22: =IF(ISERROR(MAX(0,MIN(-SUM($O22:AB22),AC$12*2-SUM(AC$12:AC21)))),"",MAX(0,MIN(-SUM($O22:AB22),AC$12*2-SUM(AC$12:AC21)))) -> 0
G23: Personne11 | H23: 0 | I23: =SUMPRODUCT((Présence!$B$11:$B$24=G23)*Présence!$C$11:$AG$24) -> 0 | J23: 0 | K23: 0 | M23: Personne11 | N23: doit | O23: 0 | P23: =IF(ISERROR(MAX(0,MIN(-SUM($O23:O23),P$12*2-SUM(P$12:P22)))),"",MAX(0,MIN(-SUM($O23:O23),P$12*2-SUM(P$12:P22)))) -> 0 | Q23: =IF(ISERROR(MAX(0,MIN(-SUM($O23:P23),Q$12*2-SUM(Q$12:Q22)))),"",MAX(0,MIN(-SUM($O23:P23),Q$12*2-SUM(Q$12:Q22)))) -> 0 | R23: =IF(ISERROR(MAX(0,MIN(-SUM($O23:Q23),R$12*2-SUM(R$12:R22)))),"",MAX(0,MIN(-SUM($O23:Q23),R$12*2-SUM(R$12:R22)))) -> 0 | S23: =IF(ISERROR(MAX(0,MIN(-SUM($O23:R23),S$12*2-SUM(S$12:S22)))),"",MAX(0,MIN(-SUM($O23:R23),S$12*2-SUM(S$12:S22)))) -> 0 | T23: =IF(ISERROR(MAX(0,MIN(-SUM($O23:S23),T$12*2-SUM(T$12:T22)))),"",MAX(0,MIN(-SUM($O23:S23),T$12*2-SUM(T$12:T22)))) -> 0 | U23: =IF(ISERROR(MAX(0,MIN(-SUM($O23:T23),U$12*2-SUM(U$12:U22)))),"",MAX(0,MIN(-SUM($O23:T23),U$12*2-SUM(U$12:U22)))) -> 0 | V23: =IF(ISERROR(MAX(0,MIN(-SUM($O23:U23),V$12*2-SUM(V$12:V22)))),"",MAX(0,MIN(-SUM($O23:U23),V$12*2-SUM(V$12:V22)))) -> 0 | W23: =IF(ISERROR(MAX(0,MIN(-SUM($O23:V23),W$12*2-SUM(W$12:W22)))),"",MAX(0,MIN(-SUM($O23:V23),W$12*2-SUM(W$12:W22)))) -> 0 | X23: =IF(ISERROR(MAX(0,MIN(-SUM($O23:W23),X$12*2-SUM(X$12:X22)))),"",MAX(0,MIN(-SUM($O23:W23),X$12*2-SUM(X$12:X22)))) -> 0 | Y23: =IF(ISERROR(MAX(0,MIN(-SUM($O23:X23),Y$12*2-SUM(Y$12:Y22)))),"",MAX(0,MIN(-SUM($O23:X23),Y$12*2-SUM(Y$12:Y22)))) -> 0 | Z23: =IF(ISERROR(MAX(0,MIN(-SUM($O23:Y23),Z$12*2-SUM(Z$12:Z22)))),"",MAX(0,MIN(-SUM($O23:Y23),Z$12*2-SUM(Z$12:Z22)))) -> 0 | AA23: =IF(ISERROR(MAX(0,MIN(-SUM($O23:Z23),AA$12*2-SUM(AA$12:AA22)))),"",MAX(0,MIN(-SUM($O23:Z23),AA$12*2-SUM(AA$12:AA22)))) -> 0 | AB23: =IF(ISERROR(MAX(0,MIN(-SUM($O23:AA23),AB$12*2-SUM(AB$12:AB22)))),"",MAX(0,MIN(-SUM($O23:AA23),AB$12*2-SUM(AB$12:AB22)))) -> 0 | AC23: =IF(ISERROR(MAX(0,MIN(-SUM($O23:AB23),AC$12*2-SUM(AC$12:AC22)))),"",MAX(0,MIN(-SUM($O23:AB23),AC$12*2-SUM(AC$12:AC22)))) -> 0
G24: Personne12 | H24: 0 | I24: =SUMPRODUCT((Présence!$B$11:$B$24=G24)*Présence!$C$11:$AG$24) -> 0 | J24: 0 | K24: 0 | M24: Personne12 | N24: doit | O24: 0 | P24: =IF(ISERROR(MAX(0,MIN(-SUM($O24:O24),P$12*2-SUM(P$12:P23)))),"",MAX(0,MIN(-SUM($O24:O24),P$12*2-SUM(P$12:P23)))) -> 0 | Q24: =IF(ISERROR(MAX(0,MIN(-SUM($O24:P24),Q$12*2-SUM(Q$12:Q23)))),"",MAX(0,MIN(-SUM($O24:P24),Q$12*2-SUM(Q$12:Q23)))) -> 0 | R24: =IF(ISERROR(MAX(0,MIN(-SUM($O24:Q24),R$12*2-SUM(R$12:R23)))),"",MAX(0,MIN(-SUM($O24:Q24),R$12*2-SUM(R$12:R23)))) -> 0 | S24: =IF(ISERROR(MAX(0,MIN(-SUM($O24:R24),S$12*2-SUM(S$12:S23)))),"",MAX(0,MIN(-SUM($O24:R24),S$12*2-SUM(S$12:S23)))) -> 0 | T24: =IF(ISERROR(MAX(0,MIN(-SUM($O24:S24),T$12*2-SUM(T$12:T23)))),"",MAX(0,MIN(-SUM($O24:S24),T$12*2-SUM(T$12:T23)))) -> 0 | U24: =IF(ISERROR(MAX(0,MIN(-SUM($O24:T24),U$12*2-SUM(U$12:U23)))),"",MAX(0,MIN(-SUM($O24:T24),U$12*2-SUM(U$12:U23)))) -> 0 | V24: =IF(ISERROR(MAX(0,MIN(-SUM($O24:U24),V$12*2-SUM(V$12:V23)))),"",MAX(0,MIN(-SUM($O24:U24),V$12*2-SUM(V$12:V23)))) -> 0 | W24: =IF(ISERROR(MAX(0,MIN(-SUM($O24:V24),W$12*2-SUM(W$12:W23)))),"",MAX(0,MIN(-SUM($O24:V24),W$12*2-SUM(W$12:W23)))) -> 0 | X24: =IF(ISERROR(MAX(0,MIN(-SUM($O24:W24),X$12*2-SUM(X$12:X23)))),"",MAX(0,MIN(-SUM($O24:W24),X$12*2-SUM(X$12:X23)))) -> 0 | Y24: =IF(ISERROR(MAX(0,MIN(-SUM($O24:X24),Y$12*2-SUM(Y$12:Y23)))),"",MAX(0,MIN(-SUM($O24:X24),Y$12*2-SUM(Y$12:Y23)))) -> 0 | Z24: =IF(ISERROR(MAX(0,MIN(-SUM($O24:Y24),Z$12*2-SUM(Z$12:Z23)))),"",MAX(0,MIN(-SUM($O24:Y24),Z$12*2-SUM(Z$12:Z23)))) -> 0 | AA24: =IF(ISERROR(MAX(0,MIN(-SUM($O24:Z24),AA$12*2-SUM(AA$12:AA23)))),"",MAX(0,MIN(-SUM($O24:Z24),AA$12*2-SUM(AA$12:AA23)))) -> 0 | AB24: =IF(ISERROR(MAX(0,MIN(-SUM($O24:AA24),AB$12*2-SUM(AB$12:AB23)))),"",MAX(0,MIN(-SUM($O24:AA24),AB$12*2-SUM(AB$12:AB23)))) -> 0 | AC24: =IF(ISERROR(MAX(0,MIN(-SUM($O24:AB24),AC$12*2-SUM(AC$12:AC23)))),"",MAX(0,MIN(-SUM($O24:AB24),AC$12*2-SUM(AC$12:AC23)))) -> 0
G25: Personne13 | H25: 0 | I25: =SUMPRODUCT((Présence!$B$11:$B$24=G25)*Présence!$C$11:$AG$24) -> 0 | J25: 0 | K25: 0 | M25: Personne13 | N25: doit | O25: 0 | P25: =IF(ISERROR(MAX(0,MIN(-SUM($O25:O25),P$12*2-SUM(P$12:P24)))),"",MAX(0,MIN(-SUM($O25:O25),P$12*2-SUM(P$12:P24)))) -> 0 | Q25: =IF(ISERROR(MAX(0,MIN(-SUM($O25:P25),Q$12*2-SUM(Q$12:Q24)))),"",MAX(0,MIN(-SUM($O25:P25),Q$12*2-SUM(Q$12:Q24)))) -> 0 | R25: =IF(ISERROR(MAX(0,MIN(-SUM($O25:Q25),R$12*2-SUM(R$12:R24)))),"",MAX(0,MIN(-SUM($O25:Q25),R$12*2-SUM(R$12:R24)))) -> 0 | S25: =IF(ISERROR(MAX(0,MIN(-SUM($O25:R25),S$12*2-SUM(S$12:S24)))),"",MAX(0,MIN(-SUM($O25:R25),S$12*2-SUM(S$12:S24)))) -> 0 | T25: =IF(ISERROR(MAX(0,MIN(-SUM($O25:S25),T$12*2-SUM(T$12:T24)))),"",MAX(0,MIN(-SUM($O25:S25),T$12*2-SUM(T$12:T24)))) -> 0 | U25: =IF(ISERROR(MAX(0,MIN(-SUM($O25:T25),U$12*2-SUM(U$12:U24)))),"",MAX(0,MIN(-SUM($O25:T25),U$12*2-SUM(U$12:U24)))) -> 0 | V25: =IF(ISERROR(MAX(0,MIN(-SUM($O25:U25),V$12*2-SUM(V$12:V24)))),"",MAX(0,MIN(-SUM($O25:U25),V$12*2-SUM(V$12:V24)))) -> 0 | W25: =IF(ISERROR(MAX(0,MIN(-SUM($O25:V25),W$12*2-SUM(W$12:W24)))),"",MAX(0,MIN(-SUM($O25:V25),W$12*2-SUM(W$12:W24)))) -> 0 | X25: =IF(ISERROR(MAX(0,MIN(-SUM($O25:W25),X$12*2-SUM(X$12:X24)))),"",MAX(0,MIN(-SUM($O25:W25),X$12*2-SUM(X$12:X24)))) -> 0 | Y25: =IF(ISERROR(MAX(0,MIN(-SUM($O25:X25),Y$12*2-SUM(Y$12:Y24)))),"",MAX(0,MIN(-SUM($O25:X25),Y$12*2-SUM(Y$12:Y24)))) -> 0 | Z25: =IF(ISERROR(MAX(0,MIN(-SUM($O25:Y25),Z$12*2-SUM(Z$12:Z24)))),"",MAX(0,MIN(-SUM($O25:Y25),Z$12*2-SUM(Z$12:Z24)))) -> 0 | AA25: =IF(ISERROR(MAX(0,MIN(-SUM($O25:Z25),AA$12*2-SUM(AA$12:AA24)))),"",MAX(0,MIN(-SUM($O25:Z25),AA$12*2-SUM(AA$12:AA24)))) -> 0 | AB25: =IF(ISERROR(MAX(0,MIN(-SUM($O25:AA25),AB$12*2-SUM(AB$12:AB24)))),"",MAX(0,MIN(-SUM($O25:AA25),AB$12*2-SUM(AB$12:AB24)))) -> 0 | AC25: =IF(ISERROR(MAX(0,MIN(-SUM($O25:AB25),AC$12*2-SUM(AC$12:AC24)))),"",MAX(0,MIN(-SUM($O25:AB25),AC$12*2-SUM(AC$12:AC24)))) -> 0
G26: Personne14 | H26: 0 | I26: =SUMPRODUCT((Présence!$B$11:$B$24=G26)*Présence!$C$11:$AG$24) -> 0 | J26: 0 | K26: 0 | M26: Personne14 | N26: doit | O26: 0 | P26: =IF(ISERROR(MAX(0,MIN(-SUM($O26:O26),P$12*2-SUM(P$12:P25)))),"",MAX(0,MIN(-SUM($O26:O26),P$12*2-SUM(P$12:P25)))) -> 0 | Q26: =IF(ISERROR(MAX(0,MIN(-SUM($O26:P26),Q$12*2-SUM(Q$12:Q25)))),"",MAX(0,MIN(-SUM($O26:P26),Q$12*2-SUM(Q$12:Q25)))) -> 0 | R26: =IF(ISERROR(MAX(0,MIN(-SUM($O26:Q26),R$12*2-SUM(R$12:R25)))),"",MAX(0,MIN(-SUM($O26:Q26),R$12*2-SUM(R$12:R25)))) -> 0 | S26: =IF(ISERROR(MAX(0,MIN(-SUM($O26:R26),S$12*2-SUM(S$12:S25)))),"",MAX(0,MIN(-SUM($O26:R26),S$12*2-SUM(S$12:S25)))) -> 0 | T26: =IF(ISERROR(MAX(0,MIN(-SUM($O26:S26),T$12*2-SUM(T$12:T25)))),"",MAX(0,MIN(-SUM($O26:S26),T$12*2-SUM(T$12:T25)))) -> 0 | U26: =IF(ISERROR(MAX(0,MIN(-SUM($O26:T26),U$12*2-SUM(U$12:U25)))),"",MAX(0,MIN(-SUM($O26:T26),U$12*2-SUM(U$12:U25)))) -> 0 | V26: =IF(ISERROR(MAX(0,MIN(-SUM($O26:U26),V$12*2-SUM(V$12:V25)))),"",MAX(0,MIN(-SUM($O26:U26),V$12*2-SUM(V$12:V25)))) -> 0 | W26: =IF(ISERROR(MAX(0,MIN(-SUM($O26:V26),W$12*2-SUM(W$12:W25)))),"",MAX(0,MIN(-SUM($O26:V26),W$12*2-SUM(W$12:W25)))) -> 0 | X26: =IF(ISERROR(MAX(0,MIN(-SUM($O26:W26),X$12*2-SUM(X$12:X25)))),"",MAX(0,MIN(-SUM($O26:W26),X$12*2-SUM(X$12:X25)))) -> 0 | Y26: =IF(ISERROR(MAX(0,MIN(-SUM($O26:X26),Y$12*2-SUM(Y$12:Y25)))),"",MAX(0,MIN(-SUM($O26:X26),Y$12*2-SUM(Y$12:Y25)))) -> 0 | Z26: =IF(ISERROR(MAX(0,MIN(-SUM($O26:Y26),Z$12*2-SUM(Z$12:Z25)))),"",MAX(0,MIN(-SUM($O26:Y26),Z$12*2-SUM(Z$12:Z25)))) -> 0 | AA26: =IF(ISERROR(MAX(0,MIN(-SUM($O26:Z26),AA$12*2-SUM(AA$12:AA25)))),"",MAX(0,MIN(-SUM($O26:Z26),AA$12*2-SUM(AA$12:AA25)))) -> 0 | AB26: =IF(ISERROR(MAX(0,MIN(-SUM($O26:AA26),AB$12*2-SUM(AB$12:AB25)))),"",MAX(0,MIN(-SUM($O26:AA26),AB$12*2-SUM(AB$12:AB25)))) -> 0 | AC26: =IF(ISERROR(MAX(0,MIN(-SUM($O26:AB26),AC$12*2-SUM(AC$12:AC25)))),"",MAX(0,MIN(-SUM($O26:AB26),AC$12*2-SUM(AC$12:AC25)))) -> 0
G28: Total | H28: =SUM(H13:H26) -> 723 | I28: =SUM(I13:I26) -> 58 | P28: =IF(ISERROR(IF(ROUND(P12,2)-ROUND(SUM(P13:P26),2)=0,"OK","Écart")),"",IF(ROUND(P12,2)-ROUND(SUM(P13:P26),2)=0,"OK","Écart")) -> OK | Q28: =IF(ISERROR(IF(ROUND(Q12,2)-ROUND(SUM(Q13:Q26),2)=0,"OK","Écart")),"",IF(ROUND(Q12,2)-ROUND(SUM(Q13:Q26),2)=0,"OK","Écart")) -> OK | R28: OK | S28: OK | T28: OK | U28: OK | V28: OK | W28: OK | X28: OK | Y28: OK | Z28: OK | AA28: OK | AB28: OK | AC28: OK

Sheet Présence
A1: Date de début : | B1: 2021-05-01
A2: Date de fin : | B2: 2021-05-15
C10: 2021-05-01 | D10: 2021-05-02 | E10: 2021-05-03 | F10: 2021-05-04 | G10: 2021-05-05 | H10: 2021-05-06 | I10: 2021-05-07 | J10: 2021-05-08 | K10: 2021-05-09 | L10: 2021-05-10 | M10: 2021-05-11 | N10: 2021-05-12 | O10: 2021-05-13 | P10: 2021-05-14 | Q10: 2021-05-15
B11: Personne1 | C11: 1 | D11: 1 | E11: 1 | F11: 1 | G11: 1 | H11: 1 | I11: 1 | J11: 1 | K11: 1 | L11: 1 | M11: 1 | N11: 1 | O11: 1 | P11: 1 | Q11: 1
B12: Personne2
B13: Personne3 | D13: 1.5 | E13: 1.5 | F13: 1.5 | G13: 1.5
B14: Personne4 | D14: 1 | E14: 1 | F14: 1 | G14: 1
B15: Personne5
B16: Personne6 | C16: 1 | D16: 1 | E16: 1 | F16: 1 | G16: 1 | H16: 1 | I16: 1 | J16: 1 | K16: 1 | L16: 1 | M16: 1 | N16: 1 | O16: 1 | P16: 1 | Q16: 1
B17: Personne7
B18: Personne8 | I18: 2 | J18: 2 | K18: 2 | L18: 2 | M18: 2 | N18: 2 | O18: 2 | P18: 2 | Q18: 2
B19: Personne9
B20: Personne10
B21: Personne11
B22: Personne12
B23: Personne13
B24: Personne14
B25: Total
B32: =SUMIF(B11:B24,B15,C11:K24) -> 0
